lending/lending_fUSD_20250318
["ID","MTS","AMOUNT","RATE_DAILY","PERIOD"]
[356357202,1742335837990,-150.0,0.00027,2]
[356357203,1742335837999,-192.33697356,0.00027,2]
[356357204,1742335838019,-507.66302644,0.00027,2]
[356357205,1742335838029,-153.89,0.00027083,2]
[356357206,1742335838038,-164.634968,0.00027149,3]
[356357207,1742335838047,-153.89,0.00027214,2]
[356357208,1742335838056,-153.89,0.00027344,2]
[356357209,1742335838065,-2000.0,0.00027397,14]
[356357210,1742335838075,-60.88627081,0.00027397,2]
[356357211,1742335838086,-763.50334123,0.00027397,2]
[356357212,1742335838098,-75.61038796,0.00027397,2]
[356357213,1742335838107,-391.44090132,0.00027397,2]
[356357214,1742335838118,-508.55909868,0.00027397,2]
[356357215,1742335838127,-900.0,0.00027397,2]
[356357216,1742335838136,-900.0,0.00027397,2]
[356357217,1742335838146,-900.0,0.00027397,2]
[356357218,1742335838155,-900.0,0.00027397,2]
[356357219,1742335838164,-900.0,0.00027397,2]
[356357220,1742335838174,-900.0,0.00027397,2]
[356357221,1742335838183,-900.0,0.00027397,2]
[356357222,1742335838193,-900.0,0.00027397,2]
[356357223,1742335838203,-215.82416629,0.00027397,2]
[356357224,1742335838214,-300.0,0.00027405,2]
[356357225,1742335838223,-500.0,0.00027567,120]
[356357226,1742335838233,-449.04956028,0.00027671,14]
[356357227,1742335838245,-1550.95043972,0.00027671,14]
[356357228,1742335838254,-209.5416486,0.00027882,2]
[356357229,1742335838263,-2219.28806208,0.00027899,2]
[356357230,1742335839751,-276.46,0.00021226,2]
[356357231,1742335839761,-6817.42357872,0.00027899,2]
[356357232,1742335839771,-500.0,0.00027911,7]
[356357233,1742335839780,-514.40990909,0.00027911,7]
[356357234,1742335839790,-500.0,0.00027911,7]
[356357235,1742335839800,-2000.0,0.00027945,14]
[356357236,1742335839810,-500.0,0.00027993,2]
[356357237,1742335839820,-152.0,0.00028022,5]
[356357238,1742335839830,-150.0,0.00028093,30]
[356357239,1742335839839,-348.48387532,0.00028093,30]
[356357240,1742335839848,-200.70311438,0.00028093,30]
[356357241,1742335839858,-2000.0,0.00028219,14]
[356357242,1742335839868,-424.8367054,0.00028296,2]
[356357243,1742335839877,-808.98,0.00028489,30]
[356357244,1742335839887,-2000.0,0.00028493,14]
[356357245,1742335839897,-424.83670541,0.00028721,2]
[356357246,1742335839906,-2000.0,0.00028767,14]
[356357247,1742335839915,-300.0,0.00028775,2]
[356357248,1742335839924,-135.22856483,0.000288,30]
[356357249,1742335839936,-2144.09999998,0.000288,30]
[356357250,1742335839947,-260.426166,0.000288,30]
[356357251,1742335839959,-2460.24526919,0.000288,30]
[356357252,1742335839969,-1068.40958001,0.00028999,15]
[356357253,1742335839978,-208.97891293,0.00028999,2]
[356357254,1742335839988,-429.2935657,0.00028999,2]
[356357255,1742335839997,-15841.11869213,0.00029,30]
[356357287,1742335842501,-840.48445231,0.00029,30]
[356357288,1742335842513,-339.48609934,0.00029,30]
[356357289,1742335842524,-8624.5,0.00029,30]
[356357290,1742335842546,-4955.95916019,0.00029,30]
[356357354,1742335843599,-86.26331914,0.00029,30]
[356357355,1742335843615,-1509.09021663,0.00029,30]
[356357356,1742335843627,-1385.33189711,0.00029,30]
[356357357,1742335843639,-616.349041,0.00029,30]
[356357358,1742335843654,-369.12270208,0.00029,30]
[356357359,1742335845688,-379.18,0.00029,30]
[356357360,1742335845723,-1370.39219861,0.00029,30]
[356357361,1742335845734,-1724.62010055,0.00029,30]
[356357363,1742335845834,-872.538289,0.00029,30]
[356357455,1742336709247,1048.53725556,0.00029641,90]
[356357456,1742336711437,508.27352811,0.00029641,30]
[356357457,1742336711478,999.999997,0.00029641,120]
[356357458,1742336712651,379.87114716,0.00029641,30]
[356357459,1742336713305,574.07228118,0.00029641,91]
[356357460,1742336713427,395.8610744,0.00029641,30]
[356357461,1742336715335,871.39617485,0.00029641,30]
[356357462,1742336716589,1000.0,0.00029641,30]
[356357463,1742336720398,594.78461445,0.00029641,120]
[356357464,1742336721103,334.2254669,0.00029641,120]
[356357465,1742336723922,735.33095184,0.00029641,30]
[356357467,1742336724094,1212.34838271,0.00029641,120]
[356357468,1742336727176,1077.30389682,0.00029641,30]
[356357471,1742336729218,534.77792916,0.00029641,30]
[356357472,1742336729283,484.38465799,0.00029641,30]
[356357473,1742336729549,500.0,0.00029641,30]
[356357482,1742336736862,301.57074431,8e-05,2]
[356357483,1742336736943,263.7811598,0.00029641,30]
[356357484,1742336744729,1801.65162236,0.00029641,120]
[356357488,1742336749952,853.54149173,0.00029641,30]
[356357507,1742336757717,861.70517051,0.00029641,30]
[356357508,1742336760691,982.26036413,0.00029641,90]
[356357509,1742336762789,1000.0,0.00029641,120]
[356357510,1742336767351,928.17797709,0.00029641,30]
[356357511,1742336768858,1000.0,0.00029641,120]
[356357513,1742336772742,207.74548929,0.00029641,30]
[356357514,1742336774076,958.89084345,0.00029641,30]
[356357515,1742336774110,226.89047481,0.00029641,120]
[356357516,1742336779642,227.50568246,0.00029641,120]
[356357517,1742336781297,1000.0,0.00029641,120]
[356357518,1742336786344,192.16937039,0.00029641,120]
[356357519,1742336788395,350.4715167,0.00029641,30]
[356357520,1742336801124,701.27079752,0.00029641,120]
[356357521,1742336802665,276.35721572,0.00029641,30]
[356357522,1742336803129,205.66418811,0.00029641,30]
[356357523,1742336811270,189.69919638,0.00029641,120]
[356357526,1742336819712,259.11740453,0.00029641,120]
[356357527,1742336819749,182.88386597,0.00029641,120]
[356357528,1742336822662,738.28634677,0.00029641,120]
[356357529,1742336830592,354.74847364,0.00029641,120]
[356357530,1742336842683,1000.0,0.00029641,120]
[356357531,1742336846156,1009.5440495,0.00029641,30]
[356357532,1742336851104,1009.71141321,0.00029641,120]
[356357533,1742336853078,1000.0,0.00029641,120]
[356357534,1742336860371,892.90580305,0.00029641,120]
[356357535,1742336861458,2722.94118175,0.00029641,120]
[356357536,1742336862696,305.55290727,0.00029641,30]
[356357537,1742336864215,2272.8526106,0.00029641,120]
[356357538,1742336864272,668.50027102,0.00029641,120]
[356357539,1742336864308,446.20557068,0.00029641,30]
[356357540,1742336866069,216.06679806,0.00029641,30]
[356357541,1742336867477,447.33963505,0.00029641,30]
[356357542,1742336868330,1014.78642376,0.00029641,120]
[356357543,1742336869748,1000.0,0.00029641,120]
[356357544,1742336875554,287.06126949,0.00029641,30]
[356357545,1742336876457,1000.0,0.00029641,120]
[356357546,1742336878277,299.52548661,0.00029641,120]
[356357547,1742336878970,379.72953183,0.00029641,120]
[356357548,1742336880621,176.27802068,0.00029641,60]
[356357549,1742336883790,882.02235425,0.00029641,30]
[356357550,1742336890791,1000.0,0.00029641,120]
[356357551,1742336900105,1000.0,0.00029641,120]
[356357552,1742336900555,363.73105155,0.00029641,120]
[356357553,1742336901261,995.40866887,0.00029641,120]
[356357554,1742336901536,627.12227705,0.00029641,120]
[356357555,1742336903586,203.13552927,0.00029641,30]
[356357556,1742336906380,316.90309124,0.00029641,30]
[356357557,1742336906534,607.61767742,0.00029641,30]
[356357558,1742336906562,278.21264929,0.00029641,120]
[356357559,1742336907354,266.06763849,0.00029641,30]
[356357560,1742336907609,517.60212671,0.00029641,45]
[356357561,1742336908553,170.80157958,0.00029641,30]
[356357562,1742336908587,307.26807776,0.00029641,30]
[356357563,1742336908621,384.2386006,0.00029641,120]
[356357564,1742336908664,1006.97837921,0.00029641,60]
[356357569,1742336909491,968.4533264,0.00029641,120]
[356357570,1742336910857,1000.0,0.00029641,120]
[356357571,1742336911881,2071.25243128,0.00029641,120]
[356357572,1742336913927,177.30507584,0.00029641,120]
[356357573,1742336914095,3105.35096156,0.00029641,30]
[356357574,1742336916603,183.29207833,0.00029641,120]
[356357575,1742336916884,425.94411898,0.00029641,30]
[356357576,1742336917086,375.27752238,0.00029641,120]
[356357578,1742336927539,1000.0,0.00029641,120]
[356357594,1742337031629,-153.0,0.00013699,2]
[356357595,1742337031638,-153.0,0.00013699,2]
[356357596,1742337031648,-153.0,0.00013699,2]
[356357597,1742337031657,-153.0,0.00013699,2]
[356357598,1742337031667,-131.70416333,0.00013699,2]
[356357599,1742337031678,-21.29583667,0.00013699,2]
[356357600,1742337031687,-153.0,0.00013699,2]
[356357601,1742337031696,-153.0,0.00013699,2]
[356357602,1742337031706,-153.0,0.00013699,2]
[356357603,1742337031716,-153.0,0.00013699,2]
[356357604,1742337031726,-153.0,0.00013699,2]
[356357605,1742337031735,-153.0,0.00013699,2]
[356357606,1742337031744,-153.0,0.00013699,2]
[356357607,1742337031753,-153.0,0.00013699,2]
[356357608,1742337031765,-153.0,0.00013699,2]
[356357609,1742337031774,-153.0,0.00013699,2]
[356357610,1742337031783,-250.0,0.00013869,2]
[356357611,1742337031793,-150.0,0.00014038,2]
[356357612,1742337031803,-250.0,0.00014414,2]
[356357613,1742337031813,-150.0,0.00014579,2]
[356357614,1742337031822,-2093.12,0.00014693,2]
[356357615,1742337031832,-2751.0,0.00014693,2]
[356357616,1742337031843,-541.0,0.00015058,2]
[356357617,1742337031852,-644.0,0.00015058,2]
[356357618,1742337031862,-511.912,0.00015058,2]
[356357619,1742337031871,-150.0,0.00015068,2]
[356357620,1742337031880,-250.0,0.00015068,2]
[356357621,1742337031890,-1866.46336849,0.000159,2]
[356357622,1742337031899,-1866.46336841,0.00016934,2]
[356357623,1742337031908,-1866.46336841,0.00017969,2]
[356357624,1742337031917,-158.8,0.000186,2]
[356357625,1742337031927,-1866.46336841,0.00019003,2]
[356357626,1742337031937,-1866.46336841,0.00020038,2]
[356357627,1742337031947,-1866.46336841,0.00021072,2]
[356357628,1742337031956,-1866.46336841,0.00022107,3]
[356357629,1742337031966,-500.0,0.00022438,2]
[356357630,1742337031976,-1866.46336841,0.00023141,3]
[356357631,1742337031986,-54615.12537165,0.00023865,2]
[356357632,1742337032003,-330.33,0.00023865,2]
[356357633,1742337032015,-10076.22988365,0.00023865,2]
[356357634,1742337032029,-763.0532227,0.00023865,2]
[356357701,1742337037636,-252.0000001,0.00023865,2]
[356357702,1742337037647,-395.54249963,0.00023865,2]
[356357704,1742337037783,-6074.07188597,0.00023865,2]
[356357706,1742337037795,-1062.4557274,0.00023865,2]
[356357724,1742337039789,-914.7637089,0.00023865,2]
[356357726,1742337039799,-299.99,0.00023973,7]
[356357727,1742337039808,-1866.46336841,0.00024176,3]
[356357728,1742337039818,-1273.033,0.00024331,6]
[356357729,1742337039827,-1085.29,0.00024958,2]
[356357730,1742337039837,-1866.46336841,0.0002521,4]
[356357731,1742337039846,-1000.0,0.00025548,2]
[356357732,1742337039857,-166.66,0.00026133,2]
[356357733,1742337039867,-278.66,0.00026144,2]
[356357734,1742337039877,-278.66,0.00026212,2]
[356357735,1742337039886,-1866.46336841,0.00026245,4]
[356357736,1742337039895,-522.59938555,0.00026267,7]
[356357737,1742337039905,-500.0,0.00026267,7]
[356357738,1742337039914,-278.66,0.00026281,2]
[356357739,1742337039924,-278.66,0.0002635,2]
[356357740,1742337039933,-278.66,0.00026419,2]
[356357741,1742337039943,-741.56,0.0002642,30]
[356357742,1742337039954,-150.0,0.00026445,2]
[356357743,1742337039964,-200.0,0.00026465,2]
[356357744,1742337039974,-278.66,0.00026488,2]
[356357745,1742337039984,-278.66,0.00026556,2]
[356357746,1742337039994,-3000.0,0.000266,2]
[356357747,1742337040004,-200.0,0.00026609,2]
[356357748,1742337040013,-250.0,0.00026612,2]
[356357749,1742337040023,-278.66,0.00026625,2]
[356357750,1742337040035,-278.66,0.00026694,2]
[356357751,1742337040045,-152.5984277,0.00026755,30]
[356357752,1742337040055,-236.0,0.0002676,2]
[356357753,1742337040066,-278.66,0.00026763,2]
[356357754,1742337040076,-278.66,0.00026832,2]
[356357755,1742337040086,-667.71,0.00026849,2]
[356357756,1742337040096,-278.66,0.000269,2]
[356357757,1742337040106,-1000.0,0.00026919,2]
[356357758,1742337040116,-278.66,0.00026969,2]
[356357759,1742337040126,-278.66,0.00027038,2]
[356357760,1742337040135,-175.14,0.00027098,2]
[356357761,1742337040145,-1000.0,0.000271,120]
[356357762,1742337040155,-278.66,0.00027107,2]
[356357763,1742337040165,-620.25,0.00027131,2]
[356357764,1742337040174,-278.66,0.00027176,2]
[356357765,1742337040184,-150.0,0.0002719,7]
[356357766,1742337040194,-166.66,0.00027212,2]
[356357767,1742337040203,-1085.29,0.00027222,2]
[356357768,1742337040213,-278.66,0.00027244,2]
[356357770,1742337040222,-1866.46336841,0.00027279,4]
[356357772,1742337040233,-278.66,0.00027313,2]
[356357773,1742337040243,-278.66,0.00027382,2]
[356357774,1742337040252,-2000.0,0.00027397,14]
[356357775,1742337040262,-278.66,0.00027451,2]
[356357776,1742337040272,-236.0,0.0002767,2]
[356357777,1742337040281,-236.0,0.0002767,2]
[356357778,1742337040291,-2000.0,0.00027671,14]
[356357780,1742337040301,-300.0,0.00027695,2]
[356357782,1742337040311,-236.0,0.0002779,2]
[356357784,1742337040320,-500.0,0.00027911,7]
[356357786,1742337040329,-2000.0,0.00027945,14]
[356357788,1742337040339,-2000.0,0.00028219,14]
[356357790,1742337040348,-150.0,0.00028249,2]
[356357792,1742337040357,-166.66,0.0002829,2]
[356357794,1742337040367,-1866.46336841,0.00028314,5]
[356357796,1742337040376,-2000.0,0.00028493,14]
[356357798,1742337040386,-2698.3964,0.00028567,2]
[356357800,1742337040396,-2110.0,0.00028603,2]
[356357802,1742337040405,-164.83710998,0.00028641,2]
[356357804,1742337040414,-628.33519504,0.00028641,2]
[356357806,1742337040424,-300.50549599,0.00028656,2]
[356357808,1742337040434,-9361.60569128,0.00028657,2]
[356357810,1742337040443,-2608.9023,0.00028657,2]
[356357812,1742337040453,-1636.6353,0.00028667,2]
[356357814,1742337040463,-236.0,0.0002869,2]
[356357816,1742337040472,-236.0,0.0002869,2]
[356357818,1742337040482,-188520.62231441,0.0002871,2]
[356357820,1742337040492,-403301.05855807,0.0002871,7]
[356357822,1742337040501,-152.1,0.00028737,2]
[356357824,1742337040511,-1000.0,0.00028741,2]
[356357826,1742337040520,-52149.9145103,0.00028747,2]
[356357828,1742337040530,-51730.97349111,0.00028754,14]
[356357830,1742337040540,-26074.9572552,0.00028757,2]
[356357832,1742337040549,-918.0,0.00028767,2]
[356357834,1742337040559,-2000.0,0.00028767,14]
[356357836,1742337040568,-200.0,0.00028768,2]
[356357838,1742337040578,-500.0,0.00028773,5]
[356357840,1742337040588,-222.0,0.0002879,2]
[356357842,1742337040597,-2692.0079,0.00028797,2]
[356357844,1742337040606,-427.2752,0.00028797,120]
[356357846,1742337040616,-6000.0,0.000288,10]
[356357848,1742337040625,-236.0,0.0002882,2]
[356357850,1742337040635,-236.0,0.0002882,2]
[356357852,1742337040645,-26074.9572552,0.00028867,2]
[356357854,1742337040655,-23671.4150587,0.00028867,2]
[356357857,1742337040665,-23671.4150587,0.0002887,2]
[356357858,1742337040675,-23671.4150587,0.00028877,2]
[356357861,1742337040684,-26074.9572552,0.0002888,2]
[356357862,1742337040694,-23671.4150587,0.0002888,2]
[356357863,1742337040703,-52149.9145103,0.0002889,2]
[356357864,1742337040713,-47342.8301174,0.0002889,2]
[356357865,1742337040722,-350.304,0.000289,2]
[356357866,1742337040732,-5188.8025,0.000289,2]
[356357867,1742337040743,-1000.0,0.000289,2]
[356357868,1742337040757,-31765.1212,0.000289,2]
[356357869,1742337040767,-6059.5899,0.000289,2]
[356357870,1742337040778,-9300.8081,0.000289,2]
[356357871,1742337040788,-9977.3152,0.000289,2]
[356357872,1742337040798,-10920.9523,0.000289,2]
[356357873,1742337040809,-12000.0,0.000289,10]
[356357874,1742337040818,-500.0,0.00028932,2]
[356357875,1742337040828,-23671.4150587,0.0002896,2]
[356357876,1742337040839,-23671.4150587,0.0002897,2]
[356357877,1742337040850,-26074.9572552,0.0002898,2]
[356357878,1742337040860,-23671.4150587,0.0002898,2]
[356357879,1742337040870,-78224.8717655,0.0002899,2]
[356357880,1742337040880,-71014.245176,0.0002899,2]
[356357881,1742337040891,-240.50439584,0.00028999,43]
[356357882,1742337040901,-535.0,0.00029,5]
[356357883,1742337040911,-29005.17728634,0.00029,30]
[356357884,1742337040922,-15951.2,0.00029,2]
[356357885,1742337040932,-750.0,0.00029,2]
[356357886,1742337040942,-236.0,0.00029,2]
[356357887,1742337040953,-1000.0,0.00029,120]
[356357888,1742337040963,-236.0,0.00029,2]
[356357889,1742337040974,-200.0,0.00029,2]
[356357890,1742337040985,-500.0,0.00029,2]
[356357891,1742337040995,-500.0,0.00029,2]
[356357892,1742337041004,-500.0,0.00029,2]
[356357893,1742337041014,-500.0,0.00029,2]
[356357894,1742337041024,-500.0,0.00029,2]
[356357895,1742337041036,-500.0,0.00029,2]
[356357896,1742337041046,-566.0,0.00029,2]
[356357897,1742337041056,-900.0,0.00029,11]
[356357898,1742337041066,-900.0,0.00029,11]
[356357899,1742337041077,-500.0,0.00029,2]
[356357900,1742337041087,-500.0,0.00029,2]
[356357901,1742337041096,-900.0,0.00029,11]
[356357902,1742337041107,-900.0,0.00029,11]
[356357903,1742337041117,-500.0,0.00029,2]
[356357904,1742337041127,-900.0,0.00029,11]
[356357905,1742337041137,-500.0,0.00029,2]
[356357906,1742337041147,-900.0,0.00029,11]
[356357907,1742337041156,-500.0,0.00029,2]
[356357908,1742337041166,-900.0,0.00029,11]
[356357909,1742337041175,-500.0,0.00029,2]
[356357910,1742337041185,-900.0,0.00029,11]
[356357911,1742337041195,-500.0,0.00029,2]
[356357912,1742337041205,-900.0,0.00029,11]
[356357913,1742337041214,-500.0,0.00029,2]
[356357914,1742337041224,-506.0,0.00029,2]
[356357915,1742337041234,-900.0,0.00029,11]
[356357916,1742337041244,-500.0,0.00029,2]
[356357917,1742337041253,-500.0,0.00029,2]
[356357918,1742337041263,-500.0,0.00029,2]
[356357919,1742337041273,-500.0,0.00029,2]
[356357920,1742337041283,-959.0,0.00029,2]
[356357921,1742337041293,-500.0,0.00029,2]
[356357922,1742337041302,-500.0,0.00029,2]
[356357923,1742337041312,-500.0,0.00029,2]
[356357924,1742337041322,-500.0,0.00029,2]
[356357925,1742337041331,-500.0,0.00029,2]
[356357926,1742337041341,-500.0,0.00029,2]
[356357927,1742337041351,-500.0,0.00029,2]
[356357928,1742337041361,-500.0,0.00029,2]
[356357929,1742337041371,-500.0,0.00029,2]
[356357930,1742337041380,-500.0,0.00029,2]
[356357931,1742337041390,-500.0,0.00029,2]
[356357932,1742337041400,-500.0,0.00029,2]
[356357933,1742337041409,-500.0,0.00029,2]
[356357934,1742337041419,-500.0,0.00029,2]
[356357935,1742337041428,-500.0,0.00029,2]
[356357936,1742337041437,-500.0,0.00029,2]
[356357937,1742337041447,-500.0,0.00029,2]
[356357938,1742337041456,-500.0,0.00029,2]
[356357939,1742337041466,-500.0,0.00029,2]
[356357940,1742337041475,-500.0,0.00029,2]
[356357941,1742337041486,-500.0,0.00029,2]
[356357942,1742337041495,-500.0,0.00029,2]
[356357943,1742337041505,-500.0,0.00029,2]
[356357944,1742337041515,-500.0,0.00029,2]
[356357945,1742337041524,-500.0,0.00029,2]
[356357946,1742337041534,-500.0,0.00029,2]
[356357947,1742337041543,-500.0,0.00029,2]
[356357948,1742337041554,-500.0,0.00029,2]
[356357949,1742337041564,-500.0,0.00029,2]
[356357950,1742337041574,-500.0,0.00029,2]
[356357951,1742337041584,-500.0,0.00029,2]
[356357952,1742337041593,-500.0,0.00029,2]
[356357953,1742337041603,-500.0,0.00029,2]
[356357954,1742337041613,-500.0,0.00029,2]
[356357955,1742337041624,-500.0,0.00029,2]
[356357956,1742337041635,-500.0,0.00029,2]
[356357957,1742337041644,-500.0,0.00029,2]
[356357958,1742337041654,-500.0,0.00029,2]
[356357959,1742337041663,-500.0,0.00029,2]
[356357960,1742337041673,-500.0,0.00029,2]
[356357961,1742337041682,-500.0,0.00029,2]
[356357962,1742337041692,-500.0,0.00029,2]
[356357963,1742337041701,-500.0,0.00029,2]
[356357964,1742337041711,-500.0,0.00029,2]
[356357965,1742337041720,-500.0,0.00029,2]
[356357966,1742337041731,-500.0,0.00029,2]
[356357967,1742337041740,-500.0,0.00029,2]
[356357968,1742337041750,-500.0,0.00029,2]
[356357969,1742337041759,-500.0,0.00029,2]
[356357970,1742337041769,-500.0,0.00029,2]
[356357971,1742337041779,-500.0,0.00029,2]
[356357972,1742337041789,-500.0,0.00029,2]
[356357973,1742337041799,-500.0,0.00029,2]
[356357974,1742337041809,-500.0,0.00029,2]
[356357975,1742337041818,-500.0,0.00029,2]
[356357976,1742337041828,-500.0,0.00029,2]
[356357977,1742337041838,-500.0,0.00029,2]
[356357978,1742337041848,-500.0,0.00029,2]
[356357979,1742337041858,-500.0,0.00029,2]
[356357980,1742337041867,-500.0,0.00029,2]
[356357981,1742337041877,-500.0,0.00029,2]
[356357982,1742337041887,-500.0,0.00029,2]
[356357983,1742337041896,-500.0,0.00029,2]
[356357984,1742337041906,-500.0,0.00029,2]
[356357985,1742337041915,-500.0,0.00029,2]
[356357986,1742337041925,-500.0,0.00029,2]
[356357987,1742337041935,-500.0,0.00029,2]
[356357988,1742337041945,-500.0,0.00029,2]
[356357989,1742337041956,-500.0,0.00029,2]
[356357990,1742337041966,-500.0,0.00029,2]
[356357991,1742337041976,-500.0,0.00029,2]
[356357992,1742337041989,-500.0,0.00029,2]
[356357993,1742337041999,-500.0,0.00029,2]
[356357994,1742337042009,-500.0,0.00029,2]
[356357995,1742337042019,-500.0,0.00029,2]
[356357996,1742337042032,-500.0,0.00029,2]
[356357997,1742337042043,-500.0,0.00029,2]
[356357998,1742337042053,-500.0,0.00029,2]
[356357999,1742337042063,-500.0,0.00029,2]
[356358000,1742337042072,-500.0,0.00029,2]
[356358001,1742337042084,-500.0,0.00029,2]
[356358002,1742337042094,-500.0,0.00029,2]
[356358003,1742337042104,-500.0,0.00029,2]
[356358004,1742337042115,-500.0,0.00029,2]
[356358005,1742337042125,-500.0,0.00029,2]
[356358006,1742337042135,-500.0,0.00029,2]
[356358007,1742337042145,-500.0,0.00029,2]
[356358008,1742337042156,-500.0,0.00029,2]
[356358009,1742337042166,-500.0,0.00029,2]
[356358010,1742337042175,-500.0,0.00029,2]
[356358011,1742337042186,-500.0,0.00029,2]
[356358012,1742337042196,-500.0,0.00029,2]
[356358013,1742337042206,-500.0,0.00029,2]
[356358014,1742337042216,-500.0,0.00029,2]
[356358015,1742337042226,-500.0,0.00029,2]
[356358016,1742337042237,-500.0,0.00029,2]
[356358017,1742337042246,-500.0,0.00029,2]
[356358018,1742337042256,-500.0,0.00029,2]
[356358019,1742337042265,-500.0,0.00029,2]
[356358020,1742337042275,-512.0,0.00029,2]
[356358021,1742337042285,-500.0,0.00029,2]
[356358022,1742337042295,-500.0,0.00029,2]
[356358023,1742337042305,-500.0,0.00029,2]
[356358024,1742337042315,-500.0,0.00029,2]
[356358025,1742337042324,-500.0,0.00029,2]
[356358026,1742337042334,-500.0,0.00029,2]
[356358027,1742337042344,-500.0,0.00029,2]
[356358028,1742337042354,-500.0,0.00029,2]
[356358029,1742337042364,-500.0,0.00029,2]
[356358030,1742337042373,-500.0,0.00029,2]
[356358031,1742337042384,-500.0,0.00029,2]
[356358048,1742337042675,-500.0,0.00029,2]
[356358049,1742337042730,-500.0,0.00029,2]
[356358050,1742337042741,-500.0,0.00029,2]
[356358051,1742337042750,-500.0,0.00029,2]
[356358052,1742337042760,-500.0,0.00029,2]
[356358053,1742337042770,-500.0,0.00029,2]
[356358054,1742337042780,-500.0,0.00029,2]
[356358055,1742337042790,-500.0,0.00029,2]
[356358056,1742337042799,-500.0,0.00029,2]
[356358057,1742337042808,-500.0,0.00029,2]
[356358058,1742337042817,-500.0,0.00029,2]
[356358059,1742337042827,-500.0,0.00029,2]
[356358060,1742337042837,-500.0,0.00029,2]
[356358061,1742337042846,-500.0,0.00029,2]
[356358062,1742337042855,-500.0,0.00029,2]
[356358063,1742337042865,-500.0,0.00029,2]
[356358064,1742337042874,-500.0,0.00029,2]
[356358065,1742337042884,-500.0,0.00029,2]
[356358066,1742337042893,-500.0,0.00029,2]
[356358067,1742337042903,-500.0,0.00029,2]
[356358068,1742337042912,-500.0,0.00029,2]
[356358069,1742337042922,-500.0,0.00029,2]
[356358070,1742337042932,-500.0,0.00029,2]
[356358071,1742337042942,-500.0,0.00029,2]
[356358072,1742337042951,-500.0,0.00029,2]
[356358073,1742337042961,-500.0,0.00029,2]
[356358074,1742337042971,-500.0,0.00029,2]
[356358075,1742337042981,-500.0,0.00029,2]
[356358076,1742337042992,-500.0,0.00029,2]
[356358077,1742337043001,-500.0,0.00029,2]
[356358078,1742337043011,-500.0,0.00029,2]
[356358079,1742337043021,-500.0,0.00029,2]
[356358080,1742337043032,-500.0,0.00029,2]
[356358081,1742337043043,-500.0,0.00029,2]
[356358082,1742337043053,-500.0,0.00029,2]
[356358083,1742337043062,-500.0,0.00029,2]
[356358084,1742337043072,-500.0,0.00029,2]
[356358085,1742337043082,-500.0,0.00029,2]
[356358086,1742337043092,-500.0,0.00029,2]
[356358087,1742337043102,-500.0,0.00029,2]
[356358088,1742337043113,-500.0,0.00029,2]